bitfinex/quotes_SOLUSD_20220117
["timestamp","ask_amount","ask_price","bid_price","bid_amount"]
[1642394425900,50.81296478,143.18,143.08,78.19395896]
[1642394426700,50.81296478,143.18,143.08,72.19395896]
[1642394429305,50.81296478,143.18,143.08,80.28350874]
[1642394429505,50.81296478,143.18,143.08,70.21350874]
[1642394430305,50.81296478,143.18,143.08,76.21350874]
[1642394431113,52.67925792,143.18,143.08,76.21350874]
[1642394431706,18.34629314,143.18,143.08,76.21350874]
[1642394431907,7.86629314,143.18,143.09,70.27]
[1642394432106,1.86629314,143.18,143.11,10.4762]
[1642394432306,1.86629314,143.18,143.12,23.3504]
[1642394432707,1.86629314,143.18,143.13,34.96170806]
[1642394432908,1.86629314,143.19,143.13,41.47170806]
[1642394433106,1.86629314,143.19,143.14,22.6866]
[1642394433306,1.86629314,143.19,143.14,105.2636]
[1642394433507,1.86629314,143.19,143.14,115.7375]
[1642394434107,1.86629314,143.23,143.14,115.7375]
[1642394434308,1.86629314,143.23,143.15,0.26]
[1642394434509,1.86629314,143.23,143.16,70.01]
[1642394435008,1.86629314,143.23,143.16,76.26]
[1642394435212,44.12334074,143.25,143.16,76.26]
[1642394435811,44.37334074,143.25,143.16,76.26]
[1642394437416,42.5070476,143.25,143.16,76.26]
[1642394437715,42.2570476,143.25,143.16,76.26]
[1642394439147,42.2570476,143.25,143.16,6.25]
[1642394439347,42.5070476,143.25,143.16,0.25]
[1642394439547,42.5070476,143.25,143.16,22.7524]
[1642394439747,42.5070476,143.25,143.16,22.5024]
[1642394439948,42.5070476,143.25,143.16,22.7524]
[1642394443651,63.0520476,143.25,143.16,22.5024]
[1642394444553,1.86629314,143.24,143.16,22.5024]
[1642394444752,12.34229314,143.24,143.16,22.5024]
[1642394444952,12.59229314,143.24,143.16,22.5024]
[1642394445554,12.59229314,143.24,143.12,24.017]
[1642394445754,10.07,143.23,143.13,23.0891]
[1642394445954,10.4779,143.21,143.13,23.3391]
[1642394446361,10.7279,143.21,143.13,23.3391]
[1642394446554,31.03780732,143.2,143.13,23.3391]
[1642394446955,31.28780732,143.2,143.13,23.3391]
[1642394451059,37.28780732,143.2,143.13,23.3391]
[1642394451258,31.28780732,143.2,143.13,23.3391]
[1642394451860,41.76640732,143.2,143.13,23.3391]
[1642394454765,47.76640732,143.2,143.13,23.3391]
[1642394455068,41.76640732,143.2,143.13,23.3391]
[1642394456166,41.76640732,143.2,143.13,30.5071]
[1642394456167,47.51640732,143.2,143.13,30.5071]
[1642394456367,37.03780732,143.2,143.13,30.5071]
[1642394456569,25.07449314,143.22,143.13,36.5071]
[1642394456770,1.86629314,143.22,143.13,36.5071]
[1642394457172,1.86629314,143.23,143.13,36.5071]
[1642394457371,0.25,143.22,143.13,23.3391]
[1642394458270,47.76429493,143.22,143.13,23.3391]
[1642394458670,58.24149493,143.22,143.13,23.3391]
[1642394459173,64.24149493,143.22,143.13,23.3391]
[1642394459975,66.10778807,143.22,143.13,23.3391]
[1642394462475,1.86629314,143.21,143.13,23.3391]
[1642394462874,8.11629314,143.21,143.13,23.3391]
[1642394466304,18.59429314,143.21,143.13,23.3391]
[1642394466505,28.66429314,143.21,143.13,0.25]
[1642394466703,53.05799314,143.21,143.13,0.25]
[1642394466911,53.05799314,143.21,143.1,25.2358]
[1642394468104,1.86629314,143.2,143.1,25.2358]
[1642394468305,10.4797,143.19,143.1,25.2358]
[1642394468704,16.7297,143.19,143.1,25.2358]
[1642394470607,18.59599314,143.19,143.1,25.2358]
[1642394473412,7.86629314,143.19,143.1,31.2358]
[1642394473611,1.86629314,143.19,143.1,25.2358]
[1642394474112,1.86629314,143.19,143.1,31.2358]
[1642394474513,1.86629314,143.19,143.1,101.2458]
[1642394474714,1.86629314,143.19,143.1,31.2358]
[1642394474913,1.86629314,143.2,143.1,31.2358]
[1642394475614,1.86629314,143.19,143.1,31.2358]
[1642394475812,1.86629314,143.19,143.1,95.2458]
[1642394477520,1.86629314,143.19,143.1,25.2358]
[1642394477918,1.86629314,143.2,143.1,31.2358]
[1642394478118,1.86629314,143.2,143.1,38.0508]
[1642394478323,2.11629314,143.2,143.1,38.0508]
[1642394478919,1.86629314,143.2,143.1,32.0508]
[1642394479318,1.86629314,143.2,143.1,38.0508]
[1642394479520,1.86629314,143.2,143.1,108.0608]
[1642394479722,2.11629314,143.2,143.1,38.0508]
[1642394479928,12.59489314,143.2,143.1,101.2458]
[1642394482624,2.11629314,143.2,143.1,101.2458]
[1642394483120,2.11629314,143.2,143.1,100.9958]
[1642394483323,2.11629314,143.2,143.1,94.9958]
[1642394483521,2.11629314,143.2,143.1,24.9858]
[1642394483722,28.66489314,143.2,143.1,24.9858]
[1642394484120,1.86629314,143.19,143.1,24.9858]
[1642394484520,8.11629314,143.19,143.1,25.2358]
[1642394485024,1.86629314,143.18,143.1,25.2358]
[1642394485220,25.78055999,143.17,143.1,25.2358]
[1642394485420,36.51135999,143.17,143.1,25.2358]
[1642394486722,36.26135999,143.17,143.1,25.2358]
[1642394487121,36.26135999,143.17,143.07,39.85284208]
[1642394487122,36.51135999,143.17,143.07,39.85284208]
[1642394487322,66.10925999,143.17,143.08,23.1022]
[1642394487525,60.10925999,143.17,143.08,23.1022]
[1642394487724,66.10925999,143.17,143.07,1.98045022]
[1642394488024,75.75655313,143.17,143.06,24.63585022]
[1642394488223,85.82655313,143.17,143.06,24.63585022]
[1642394488422,85.82655313,143.17,143.06,24.88585022]
[1642394488623,85.82655313,143.17,143.07,23.8526]
[1642394489023,85.82655313,143.17,143.07,24.1026]
[1642394489223,1.86629314,143.15,143.07,24.1026]
[1642394489423,10.4834,143.14,143.07,24.1026]
[1642394489824,10.7334,143.14,143.07,24.1026]
[1642394490324,10.4834,143.14,143.07,24.1026]
[1642394490525,7.86629314,143.15,143.07,24.1026]
[1642394490925,8.11629314,143.15,143.07,24.1026]
[1642394491123,6.25,143.15,143.07,24.1026]
[1642394491525,0.25,143.15,143.07,24.1026]
[1642394491724,16.7323,143.15,143.07,23.8526]
[1642394491928,16.7323,143.15,143.07,24.1026]
[1642394493329,26.8023,143.15,143.07,24.1026]
[1642394493530,26.8023,143.15,143.06,22.6554]
[1642394493731,26.8023,143.15,143.06,22.9054]
[1642394493928,26.8023,143.15,143.07,23.1499]
[1642394494532,26.8023,143.15,143.07,23.3999]
[1642394494930,26.8023,143.15,143.03,71.99045022]
[1642394495129,23.4908,143.14,143.03,71.99045022]
[1642394495334,10.485,143.11,143.03,71.99045022]
[1642394495932,42.6565401,143.1,143.03,71.99045022]
[1642394496433,42.6565401,143.1,143.03,70.26]
[1642394497838,42.9065401,143.1,143.03,0.25]
[1642394498035,53.3925401,143.1,143.02,24.8104]
[1642394498232,53.3925401,143.1,143.02,25.0604]
[1642394498633,53.1425401,143.1,143.02,25.0604]
[1642394499034,10.486,143.1,143.02,25.0604]
[1642394499333,31.35709314,143.14,143.03,70.01]
[1642394499534,31.35709314,143.14,143.04,24.7654]
[1642394499935,29.4908,143.14,143.04,25.0154]
[1642394500136,44.45126867,143.13,143.04,25.0154]
[1642394503142,10.4829,143.14,143.04,25.0154]
[1642394503342,10.4829,143.14,143.04,37.2344]
[1642394503541,12.08204543,143.16,143.04,37.2344]
[1642394503742,12.33204543,143.16,143.04,37.2344]
[1642394504248,46.51055899,143.15,143.04,37.2344]
[1642394505847,56.99275899,143.15,143.04,37.2344]
[1642394506068,56.99275899,143.15,143.04,31.0154]
[1642394506276,57.24275899,143.15,143.04,31.0154]
[1642394506675,56.99275899,143.15,143.05,70.01]
[1642394506876,56.99275899,143.15,143.06,38.00734148]
[1642394507075,56.99275899,143.15,143.07,24.7033]
[1642394507475,56.99275899,143.15,143.07,24.9533]
[1642394508478,62.99275899,143.15,143.07,24.9533]
[1642394509479,63.24275899,143.15,143.07,24.9533]
[1642394511381,62.99275899,143.15,143.07,24.9533]
[1642394511580,62.99275899,143.15,143.07,31.2143]
[1642394511780,46.51055899,143.15,143.07,31.2143]
[1642394512983,46.51055899,143.15,143.07,24.9533]
[1642394513881,3.46653857,143.16,143.07,24.9533]
[1642394514082,3.46653857,143.16,143.07,32.9503]
[1642394514380,3.71653857,143.16,143.07,32.9503]
[1642394514581,3.71653857,143.16,143.07,38.9503]
[1642394514984,40.37199875,143.16,143.08,70.01]
[1642394515182,40.37199875,143.16,143.09,22.9099]
[1642394515383,40.37199875,143.16,143.09,23.1599]
[1642394516285,44.50570561,143.16,143.09,23.1599]
[1642394516486,38.50570561,143.16,143.09,23.1599]
[1642394517487,40.37199875,143.16,143.09,23.1599]
[1642394520392,40.12199875,143.16,143.09,23.1599]
[1642394521491,38.25570561,143.16,143.09,23.1599]
[1642394521691,38.25570561,143.16,143.09,22.9099]
[1642394521893,38.50570561,143.16,143.09,22.9099]
[1642394522091,40.37199875,143.16,143.09,22.9099]
[1642394522791,40.37199875,143.16,143.09,23.1599]
[1642394522991,40.37199875,143.16,143.09,22.9099]
[1642394523995,46.37199875,143.16,143.09,22.9099]
[1642394524830,46.12199875,143.16,143.09,22.9099]
[1642394524996,56.60349875,143.16,143.09,22.9099]
[1642394526396,56.60349875,143.16,143.09,23.1599]
[1642394526798,56.85349875,143.16,143.09,23.1599]
[1642394527097,50.85349875,143.16,143.09,23.1599]
[1642394527797,40.37199875,143.16,143.09,23.1599]
[1642394528500,40.12199875,143.16,143.09,23.1599]
[1642394528699,40.37199875,143.16,143.09,23.1599]
[1642394528901,50.85349875,143.16,143.09,23.1599]
[1642394529701,1.86629314,143.15,143.09,23.1599]
[1642394531210,2.11629314,143.15,143.09,22.9099]
[1642394532537,8.11629314,143.15,143.09,22.9099]
[1642394532735,2.11629314,143.15,143.09,22.9099]
[1642394533436,8.11629314,143.15,143.09,22.9099]
[1642394534736,2.11629314,143.15,143.09,22.9099]
[1642394535137,12.59859314,143.15,143.04,12.05045022]
[1642394535337,36.89489314,143.15,143.05,22.6844]
[1642394536037,1.86629314,143.14,143.05,22.6844]
[1642394536239,12.34929314,143.14,143.05,22.6844]
[1642394536436,18.59929314,143.14,143.05,22.9344]
[1642394537537,1.86629314,143.13,143.05,22.9344]
[1642394537744,10.4842,143.12,143.05,22.9344]
[1642394537939,36.63939474,143.11,143.05,22.9344]
[1642394538339,42.63939474,143.11,143.05,22.9344]
[1642394538538,36.63939474,143.11,143.05,22.9344]
[1642394539139,47.37469474,143.11,143.03,24.787]
[1642394539339,53.37469474,143.11,143.03,47.6788]
[1642394539845,55.24098788,143.11,143.03,47.6788]
[1642394540445,62.21598788,143.11,143.03,47.6788]
[1642394540946,60.34969474,143.11,143.03,47.6788]
[1642394541146,53.37469474,143.11,143.03,47.6788]
[1642394541749,53.37469474,143.11,143.03,22.8918]
[1642394542149,55.24098788,143.11,143.03,22.8918]
[1642394543151,53.37469474,143.11,143.03,22.8918]
[1642394545852,53.37469474,143.11,143.03,23.1418]
[1642394546053,53.37469474,143.11,143.03,29.1418]
[1642394546255,47.37469474,143.11,143.03,29.1418]
[1642394547354,47.37469474,143.11,143.04,43.4377342]
[1642394547555,47.37469474,143.11,143.03,29.1418]
[1642394547755,47.37469474,143.11,143.03,22.8918]
[1642394548158,57.44469474,143.11,143.03,22.8918]
[1642394548758,63.44469474,143.11,143.03,22.8918]
[1642394550364,63.44469474,143.11,142.98,36.11461264]
[1642394550566,23.6073,143.1,142.99,24.1596]
[1642394550867,10.4889,143.07,142.99,25.35235539]
[1642394551566,36.65546018,143.06,142.99,25.35235539]
[1642394551965,42.65546018,143.06,142.99,25.60235539]
[1642394552163,36.65546018,143.06,142.99,25.60235539]
[1642394552966,24.2865,143.08,143.0,1.19275539]
[1642394553165,10.4869,143.09,143.0,1.19275539]
[1642394553366,16.7369,143.09,143.0,1.44275539]
[1642394553568,16.4869,143.09,143.0,1.44275539]
[1642394553766,6.0,143.09,143.01,1.19275539]
[1642394553966,52.26223914,143.11,143.03,58.06825342]
[1642394554167,46.26223914,143.11,143.03,86.96345342]
[1642394554366,1.86629314,143.11,143.04,1.19275539]
[1642394554765,1.86629314,143.11,143.04,1.44275539]
[1642394555266,1.86629314,143.11,143.05,1.19275539]
[1642394555466,1.86629314,143.11,143.05,1.44275539]
[1642394555666,49.18024797,143.12,143.05,1.44275539]
[1642394555867,55.18024797,143.12,143.05,1.44275539]
[1642394556068,6.0,143.12,143.05,1.44275539]
[1642394556467,55.90679314,143.14,143.05,1.44275539]
[1642394556671,54.2905,143.14,143.05,1.44275539]
[1642394556873,54.2905,143.14,143.05,6.93275539]
[1642394557069,41.38136337,143.13,143.05,5.74]
[1642394557474,47.38136337,143.13,143.05,5.74]
[1642394558271,47.38136337,143.13,143.05,0.25]
[1642394558472,47.38136337,143.13,143.03,81.74045342]
[1642394559073,49.24765651,143.13,143.03,81.74045342]
[1642394559376,59.73135651,143.13,143.03,81.74045342]
[1642394559878,57.86506337,143.13,143.03,81.74045342]
[1642394560977,57.86506337,143.13,143.04,70.01]
[1642394561182,51.86506337,143.13,143.04,70.01]
[1642394561378,53.73135651,143.13,143.04,70.26]
[1642394561581,43.24765651,143.13,143.04,70.26]
[1642394561780,43.24765651,143.13,143.05,23.761]
[1642394561981,41.38136337,143.13,143.05,23.761]
[1642394562183,41.38136337,143.13,143.05,24.011]
[1642394562880,46.42759314,143.15,143.05,24.011]
[1642394563282,52.67759314,143.15,143.05,24.011]
[1642394563480,52.67759314,143.15,143.05,23.761]
[1642394563683,35.94519314,143.15,143.06,1.18961397]
[1642394563982,25.87519314,143.15,143.06,71.19961397]
[1642394564182,25.87519314,143.15,143.08,36.57470459]
[1642394564383,25.87519314,143.15,143.08,45.29170459]
[1642394564986,25.87519314,143.15,143.08,45.54170459]
[1642394565689,24.0089,143.15,143.08,45.54170459]
[1642394565986,24.0089,143.15,143.08,8.967]
[1642394566213,30.2589,143.15,143.07,22.9621]
[1642394566413,1.86629314,143.14,143.07,22.9621]
[1642394566914,2.11629314,143.14,143.07,22.9621]
[1642394567215,1.86629314,143.13,143.07,22.9621]
[1642394567412,1.86629314,143.13,143.07,23.2121]
[1642394568215,1.86629314,143.14,143.07,23.2121]
[1642394568412,2.11629314,143.14,143.07,23.2121]
[1642394569313,2.11629314,143.14,143.07,22.9621]
[1642394569513,12.59929314,143.14,143.07,22.9621]
[1642394569915,1.86629314,143.13,143.03,24.4027]
[1642394570114,1.86629314,143.13,143.04,23.6955]
[1642394570312,2.11629314,143.13,143.04,23.6955]
[1642394570714,1.86629314,143.12,143.04,23.6955]
[1642394570912,31.4309711,143.11,143.04,23.6955]
[1642394575320,1.86629314,143.12,143.04,23.6955]
[1642394575521,1.86629314,143.12,143.04,29.8555]
[1642394576022,1.86629314,143.12,143.04,99.8655]
[1642394576225,36.33814139,143.11,143.04,99.8655]
[1642394576925,36.33814139,143.11,143.04,29.6055]
[1642394577125,36.33814139,143.11,143.04,23.4455]
[1642394578324,36.33814139,143.11,143.04,23.6955]
[1642394578825,42.33814139,143.11,143.04,23.6955]
[1642394579226,36.33814139,143.11,143.04,23.6955]
[1642394580827,42.58814139,143.11,143.04,23.6955]
[1642394581028,42.58814139,143.11,143.0,10.07]
[1642394581333,42.58814139,143.11,143.01,23.4412]
[1642394582131,44.45443453,143.11,143.01,23.4412]
[1642394582430,54.93953453,143.11,143.01,23.6912]
[1642394583031,48.93953453,143.11,143.01,23.6912]
[1642394583232,54.93953453,143.11,143.01,23.6912]
[1642394583832,48.93953453,143.11,143.01,23.6912]
[1642394584032,54.93953453,143.11,143.01,23.6912]
[1642394585059,1.86629314,143.1,143.01,23.6912]
[1642394585260,10.4868,143.09,143.01,23.6912]
[1642394585467,10.7368,143.09,143.01,23.6912]
[1642394585661,16.7368,143.09,143.01,23.6912]
[1642394586262,18.60309314,143.09,143.01,23.6912]
[1642394586964,7.86629314,143.09,143.01,23.6912]
[1642394587161,6.0,143.09,143.02,70.01]
[1642394587362,32.01859314,143.1,143.03,43.98168402]
[1642394587561,32.01859314,143.1,143.04,23.7619]
[1642394587761,30.1523,143.1,143.04,23.7619]
[1642394587965,30.1523,143.1,143.04,24.0119]
[1642394588663,24.1523,143.1,143.04,24.0119]
[1642394588964,34.8882,143.1,143.04,23.7619]
[1642394589662,34.8882,143.1,143.04,24.0119]
[1642394589863,40.8882,143.1,143.04,24.0119]
[1642394590063,34.8882,143.1,143.04,24.0119]
[1642394590263,36.75449314,143.1,143.04,24.0119]
[1642394590664,26.26859314,143.1,143.04,24.0119]
[1642394591265,26.01859314,143.1,143.04,24.0119]
[1642394591665,26.01859314,143.1,143.04,30.2009]
[1642394592567,38.20443453,143.11,143.04,30.2009]
[1642394592771,38.20443453,143.11,143.04,24.0119]
[1642394592970,1.86629314,143.11,143.04,29.5399]
[1642394593170,1.86629314,143.11,143.04,30.72951397]
[1642394593368,1.86629314,143.11,143.04,36.72951397]
[1642394593570,1.86629314,143.11,143.05,0.26]
[1642394594069,1.86629314,143.11,143.05,1.44961397]
[1642394594270,1.86629314,143.11,143.06,46.4105591]
[1642394594470,1.86629314,143.11,143.06,52.6605591]
[1642394594871,1.86629314,143.14,143.06,52.6605591]
[1642394595072,1.86629314,143.14,143.07,24.0257]
[1642394595272,1.86629314,143.14,143.07,30.0017]
[1642394595475,1.86629314,143.14,143.07,30.2517]
[1642394595871,48.7988303,143.15,143.07,30.2517]
[1642394596773,1.86629314,143.15,143.07,30.2517]
[1642394597274,1.86629314,143.15,143.07,37.44131397]
[1642394597474,1.86629314,143.15,143.07,107.45131397]
[1642394597678,1.86629314,143.16,143.08,10.33]
[1642394597875,1.86629314,143.16,143.09,23.0291]
[1642394598079,1.86629314,143.16,143.09,24.21871397]
[1642394598276,1.86629314,143.16,143.09,24.46871397]
[1642394598478,1.86629314,143.18,143.09,30.46871397]
[1642394598675,1.86629314,143.18,143.09,23.2791]
[1642394601978,1.86629314,143.18,143.09,29.2791]
[1642394602177,1.86629314,143.18,143.09,23.2791]
[1642394602678,1.86629314,143.18,143.09,29.2791]
[1642394602876,1.86629314,143.18,143.09,23.2791]
[1642394604780,83.1239323,143.19,143.09,23.2791]
[1642394604982,83.3739323,143.19,143.09,23.2791]
[1642394605983,89.3739323,143.19,143.09,23.2791]
[1642394606991,42.38699314,143.19,143.09,29.8051]
[1642394607190,25.90779314,143.19,143.09,35.8051]
[1642394607386,1.86629314,143.19,143.1,0.26]
[1642394607988,47.36656038,143.2,143.11,1.18656533]
[1642394608186,47.36656038,143.2,143.12,49.49109733]
[1642394608387,47.36656038,143.2,143.13,23.3863]
[1642394608785,47.36656038,143.2,143.13,23.6363]
[1642394609386,45.50026724,143.2,143.13,23.6363]
[1642394610387,45.75026724,143.2,143.09,10.07]
[1642394610590,68.34646724,143.2,143.12,0.25]
[1642394610890,76.04724312,143.2,143.12,0.25]
[1642394611116,74.34646724,143.2,143.12,0.25]
[1642394611488,84.82506724,143.2,143.12,0.25]
[1642394611688,84.82506724,143.2,143.1,73.1432929]
[1642394613089,78.57506724,143.2,143.1,73.1432929]
[1642394613289,33.0748,143.2,143.1,73.1432929]
[1642394613500,22.5962,143.2,143.1,79.1432929]
[1642394613889,22.5962,143.2,143.1,73.1432929]
[1642394614390,42.48351924,143.19,143.1,73.1432929]
[1642394614788,42.48351924,143.19,143.1,72.8932929]
[1642394616591,22.5962,143.2,143.1,72.8932929]
[1642394616792,28.8462,143.2,143.1,73.1432929]
[1642394617004,28.5962,143.2,143.1,87.6682929]
[1642394617192,28.5962,143.2,143.1,88.85160406]
[1642394617396,6.0,143.2,143.1,88.85160406]
[1642394617598,47.70096286,143.22,143.1,88.85160406]
[1642394617795,14.32402855,143.23,143.11,70.01]
[1642394618197,10.4766,143.23,143.11,71.44331116]
[1642394618397,23.8599,143.22,143.12,24.342]
[1642394618799,39.22952385,143.21,143.12,24.592]
[1642394619201,39.47952385,143.21,143.12,24.592]
[1642394619402,45.47952385,143.21,143.12,24.592]
[1642394619701,39.47952385,143.21,143.12,24.592]
[1642394619902,39.22952385,143.21,143.12,24.592]
[1642394620303,45.47952385,143.21,143.12,24.592]
[1642394620906,55.95732385,143.21,143.12,24.592]
[1642394621404,55.95732385,143.21,143.12,24.342]
[1642394622804,55.95732385,143.21,143.12,24.592]
[1642394623004,45.22952385,143.21,143.12,24.592]
[1642394623807,39.22952385,143.21,143.12,24.592]
[1642394628738,45.22952385,143.21,143.12,24.592]
[1642394629135,39.22952385,143.21,143.12,24.592]
[1642394629335,45.22952385,143.21,143.12,24.592]
[1642394629538,39.22952385,143.21,143.12,24.592]
[1642394629736,45.22952385,143.21,143.12,24.592]
[1642394629936,39.22952385,143.21,143.12,24.592]
[1642394630436,45.22952385,143.21,143.12,24.592]
[1642394631238,45.47952385,143.21,143.12,24.592]
[1642394632441,39.47952385,143.21,143.12,24.592]
[1642394632642,39.22952385,143.21,143.12,24.592]
[1642394632841,45.47952385,143.21,143.12,24.592]
[1642394633243,54.7140551,143.2,143.12,24.592]
[1642394633846,60.7140551,143.2,143.12,24.592]
[1642394635949,60.9640551,143.2,143.12,24.592]
[1642394636554,84.6402551,143.2,143.12,24.592]
[1642394636752,78.3902551,143.2,143.12,24.592]
[1642394637404,78.6402551,143.2,143.12,24.592]
[1642394638391,84.6402551,143.2,143.12,24.592]
[1642394638593,78.6402551,143.2,143.12,24.592]
[1642394641193,78.3902551,143.2,143.12,24.592]
[1642394641794,78.6402551,143.2,143.12,24.592]
[1642394641995,78.3902551,143.2,143.12,24.592]
[1642394642594,82.23768365,143.2,143.12,24.592]
[1642394643897,78.3902551,143.2,143.12,24.592]
[1642394646398,84.6402551,143.2,143.12,24.342]
[1642394647299,88.48768365,143.2,143.12,24.342]
[1642394648403,98.96638365,143.2,143.12,24.342]
[1642394648705,10.07,143.19,143.08,24.5347]
[1642394648905,16.32,143.19,143.08,24.5347]
[1642394649306,24.1546026,143.19,143.08,24.5347]
[1642394649506,78.10138619,143.18,143.09,37.17214071]
[1642394649907,84.35138619,143.18,143.09,37.42214071]
[1642394650105,78.35138619,143.18,143.1,23.7272]
[1642394650304,82.19881474,143.18,143.1,23.9772]
[1642394650705,88.19881474,143.18,143.1,23.9772]
[1642394651509,84.35138619,143.18,143.1,23.9772]
[1642394651707,78.35138619,143.18,143.1,23.9772]
[1642394654710,78.10138619,143.18,143.1,23.9772]
[1642394657639,78.35138619,143.18,143.1,23.9772]
[1642394658439,84.35138619,143.18,143.1,23.9772]
[1642394658639,78.10138619,143.18,143.1,23.9772]
[1642394662643,84.10138619,143.18,143.1,23.9772]
[1642394662942,78.10138619,143.18,143.1,23.9772]
[1642394664142,84.10138619,143.18,143.1,23.9772]
[1642394664343,78.35138619,143.18,143.1,23.9772]
[1642394664544,84.10138619,143.18,143.1,23.9772]
[1642394664746,84.35138619,143.18,143.1,23.9772]
[1642394665343,78.35138619,143.18,143.1,23.9772]
[1642394665746,84.35138619,143.18,143.1,23.9772]
[1642394666945,78.35138619,143.18,143.1,23.9772]
[1642394667146,84.35138619,143.18,143.1,23.9772]
[1642394667846,84.10138619,143.18,143.1,23.9772]
[1642394671352,84.10138619,143.18,143.1,93.9872]
[1642394675858,78.10138619,143.18,143.1,93.9872]
[1642394677463,84.10138619,143.18,143.1,93.9872]
[1642394678461,78.10138619,143.18,143.1,93.9872]
[1642394685570,54.72528619,143.18,143.1,93.9872]
[1642394685768,54.72528619,143.18,143.11,0.26]
[1642394685971,27.82382855,143.2,143.11,0.26]
[1642394686171,33.82382855,143.2,143.11,0.26]
[1642394686369,27.82382855,143.2,143.11,0.26]
[1642394687572,23.9764,143.2,143.11,0.26]
[1642394688178,23.9764,143.2,143.11,1.44331116]
[1642394688473,23.9764,143.2,143.12,37.755361]
[1642394688773,23.9764,143.2,143.13,24.8197]
[1642394688978,23.9764,143.2,143.13,25.0697]
[1642394691805,24.2264,143.2,143.13,25.0697]
[1642394692004,30.2264,143.2,143.13,25.0697]
[1642394692205,24.2264,143.2,143.13,25.0697]
[1642394692706,30.2264,143.2,143.13,25.0697]
[1642394694608,24.2264,143.2,143.13,25.0697]
[1642394694809,30.2264,143.2,143.13,25.0697]
[1642394695410,40.7049,143.2,143.13,25.0697]
[1642394698215,34.07382855,143.2,143.13,25.0697]
[1642394698718,34.07382855,143.2,143.13,33.2927]
[1642394698914,28.07382855,143.2,143.13,33.2927]
[1642394699717,28.07382855,143.2,143.13,25.0697]
[1642394701517,28.07382855,143.2,143.13,0.25]
[1642394701717,54.7166612,143.19,143.13,0.25]
[1642394701917,60.9666612,143.19,143.09,0.26]
[1642394702317,60.9666612,143.19,143.09,24.8766]
[1642394702719,60.9666612,143.19,143.09,24.8666]
[1642394702921,22.7609,143.18,143.09,24.8666]
[1642394703319,29.0109,143.18,143.06,10.07]
[1642394703520,29.0109,143.18,143.07,23.7168]
[1642394703922,39.4911,143.18,143.07,23.7168]
[1642394704421,121.27187588,143.18,143.04,10.07]
[1642394704623,51.26187588,143.18,143.05,24.9413]
[1642394704820,7.83377104,143.17,143.05,24.9413]
[1642394705020,10.4826,143.15,143.05,24.9413]
[1642394705421,16.7326,143.15,143.05,24.9413]
[1642394705622,16.7326,143.15,143.05,25.1913]
[1642394709958,16.4826,143.15,143.05,25.1913]
[1642394710157,3.84742855,143.16,143.06,1.18331116]
[1642394710357,3.84742855,143.16,143.07,10.07]
[1642394710557,3.84742855,143.16,143.08,23.2866]
[1642394710756,3.84742855,143.16,143.09,10.07]
[1642394710957,2.855e-05,143.16,143.1,40.71002517]
[1642394711158,2.855e-05,143.19,143.12,70.01]
[1642394711360,2.855e-05,143.19,143.13,92.9359]
[1642394711557,2.855e-05,143.19,143.13,99.1859]
[1642394711757,2.855e-05,143.19,143.13,110.43921116]
[1642394712860,5.73250021,143.25,143.13,110.43921116]
[1642394713559,11.73250021,143.25,143.13,110.43921116]
[1642394713760,9.98454455,143.25,143.13,110.43921116]
[1642394714163,9.98454455,143.25,143.14,1.18817921]
[1642394714459,4.23454455,143.25,143.16,70.01]
[1642394714662,3.98454455,143.25,143.17,24.4555]
[1642394714858,10.4729,143.28,143.17,105.0455]
[1642394715259,10.4729,143.28,143.17,111.0455]
[1642394715460,10.4729,143.28,143.17,34.7755]
[1642394715661,10.4729,143.28,143.17,10.32]
[1642394715960,10.4744,143.26,143.17,10.32]
[1642394716463,16.7244,143.26,143.17,10.32]
[1642394717862,16.7244,143.26,143.17,10.07]
[1642394718063,16.7244,143.26,143.16,22.6798]
[1642394718262,16.7244,143.26,143.16,22.9298]
[1642394719865,16.7244,143.26,143.13,10.07]
[1642394720264,26.7944,143.26,143.13,10.32]
[1642394720463,26.7944,143.26,143.1,48.6243]
[1642394720663,61.64729736,143.26,143.1,48.6243]
[1642394720864,193.3656662,143.26,143.1,48.6243]